Cogmind - Beta 17 @@@ ROGUE MODE // 2026.08.22 @ 10:59:35 Player: Floof Enjoyer Result: Destroyed by G-34 Mercenary with Small Laser Performance ------------- Evolutions (0) 0 Regions Visited (2) 400 Robots Destroyed (21) 105 Value Destroyed (429) 429 Prototype IDs (0) 0 Alien Tech Used (0) 0 Bonus (0) 0 TOTAL SCORE: 934 Bonus ------- None Cogmind --------- Core Integrity 0/250 Matter 261/300 Energy 83/100 System Corruption 0% Temperature Cool (6) Movement Flying (40) Location -10/Mines Parts ------- > --- POWER (1) -------- (None) > --- PROPULSION (2) --- Flight Unit > --- UTILITY (2) ------ Improved Heat Sink Targeting Computer > --- WEAPON (2) ------- Small Laser Light Assault Rifle > --- INVENTORY (5) ---- Light Nuclear Core Wheel Improved Heat Sink Mining Laser Peak State ------------ > --- POWER ------------ Light Ion Engine > --- PROPULSION ------- Flight Unit Flight Unit > --- UTILITY ---------- Improved Heat Sink Targeting Computer > --- WEAPON ----------- Light Assault Rifle Light Assault Rifle > --- INVENTORY -------- Light Nuclear Core Improved Heat Sink Small Laser Mining Laser [Rating: 9] Favorites ----------- Power Light Ion Engine Engine Light Ion Engine Propulsion Compact Wheel Leg Aluminum Leg Wheel Compact Wheel Flight Unit Flight Unit Utility Small Storage Unit Device Improved Heat Sink Storage Small Storage Unit Processor Targeting Computer Weapon Light Assault Rifle Energy Gun Small Laser Ballistic Gun Light Assault Rifle Build | -11 -10 -10 ------- Run | Yrd Mat Min Slots Evolved . | . . . Power . | . . . Propulsion . | . . . Utility . | . . . Weapon . | . . . Parts Attached 23 | 7 9 7 Power 4 | 1 2 1 Engine 4 | 1 2 1 Core . | . . . Reactor . | . . . Propulsion 9 | 2 5 2 Treads . | . . . Leg 2 | . 2 . Wheel 5 | 2 3 . Hover . | . . . Flight 2 | . . 2 Utility 3 | 1 1 1 Device 1 | . . 1 Storage 1 | 1 . . Processor 1 | . 1 . Hackware . | . . . Protection . | . . . Artifact . | . . . Weapon 7 | 3 1 3 Energy Gun 2 | 1 . 1 Energy Cannon . | . . . Ballistic Gun 5 | 2 1 2 Ballistic Cannon . | . . . Launcher . | . . . Special Weapon . | . . . Impact Weapon . | . . . Slashing Weapon . | . . . Piercing Weapon . | . . . Special Melee Weapon . | . . . Unidentified Prototypes . | . . . Parts Lost 8 | . 4 4 Power 2 | . 1 1 Propulsion 4 | . 3 1 Utility . | . . . Weapon 2 | . . 2 Highest Loss Streak 3 | . 3 3 To Critical Strikes . | . . . Average Backups 4 | 2 4 6 Power 1 | . 1 1 Propulsion . | . . . Utility . | . . 1 Weapon 1 | 1 1 2 Tool/Special . | . . . Unused Backups 5 | . 2 3 Power 2 | . 1 1 Propulsion . | . . . Utility 1 | . . 1 Weapon 2 | . 1 1 Tool/Special . | . . . Average Slot Usage (%) 88 | . 86 92 Engine 11 | . 11 12 Leg 3 | . 4 . Wheel 18 | . 20 14 Flight 2 | . . 11 Device 1 | . . 6 Storage 12 | . 14 8 Processor 8 | . 7 14 Energy Gun 7 | . 7 6 Ballistic Gun 20 | . 20 20 Peak Build Rating 9 | 6 8 9 Average Rating 6 | 3 6 7 On Entrance 4 | . 6 8 Avg Prop Armor Cover (%) . | . . . Naked Turns . | . . . Heaviest Build 12 | 12 12 10 Greatest Support 32 | 26 32 26 Greatest Overweight (x) 2 | . 2 . Average Overweight (x) . | . . . Largest Inventory Capacity 8 | 8 8 8 Average Capacity 7 | 6 8 6 Most Carried 8 | 5 8 8 Average Carried 4 | 2 4 5 Final Capacity 8 | 8 8 5 Final Carried 8 | 2 8 4 Class Distribution -------------------- 90% | Mutant 9% | Scavenger-Mutant Dominant Class ---------------- Mutant | -10/Materials Scavenger-Mutant | -10/Mines Resources | -11 -10 -10 ----------- Run | Yrd Mat Min Matter Collected 498 | 199 233 66 Remotely . | . . . Salvage Created 615 | . 466 149 Parts 36 | . 28 8 Haulers Intercepted . | . . . Recyclers Shooed 1 | . 1 . Parts Field Recycled . | . . . Retrieved Matter . | . . . Parts Self-Destructed . | . . . Prevented . | . . . Parts Restored . | . . . Kills | -11 -10 -10 ------- Run | Yrd Mat Min Combat Hostiles Destroyed 17 | . 10 7 Guns 17 | . 10 7 Classes Destroyed 6 | . 6 . Worker 1 | . 1 . Builder 1 | . 1 . Recycler 1 | . 1 . Watcher 1 | . 1 . Swarmer 9 | . 3 6 Grunt 8 | . 7 1 Best Kill Streak 4 | . 4 3 Combat Bots Only 4 | . 4 3 Max Kills in Single Turn 1 | . 1 1 Gunslinging . | . . . Exploded . | . . . Melee . | . . . Uniques/NPCs Destroyed . | . . . Combat | -11 -10 -10 -------- Run | Yrd Mat Min Hostile Shots Fired 127 | . 63 64 Missed 37 | . 20 17 Hits 90 | . 43 47 Projectile 90 | . 43 47 Critical Strikes 3 | . 2 1 Damage Taken 942 | . 485 457 Core 252 | . 146 106 Absorbed by Shields . | . . . Core Remaining (%) 100 | 100 . . Volleys Fired 85 | . 58 27 Largest 2 | . 2 2 Hottest 60 | . 60 60 Shots Fired 163 | . 115 48 Gun 163 | . 115 48 Cannon . | . . . Launcher . | . . . Special . | . . . Kinetic 137 | . 99 38 Thermal 26 | . 16 10 Explosive . | . . . Electromagnetic . | . . . Robot Hit Streak 11 | . 11 11 Robot Miss Streak 3 | . 2 3 Penetration Max . | . . . Secondary Targets 5 | . 2 3 Max Gunslinging Chain 1 | . 1 1 Shots Hit Robots 110 | . 76 34 Core Hits 50 | . 36 14 Critical Kills . | . . . Critical Parts Destroyed 1 | . 1 . Critical Strikes 1 | . 1 . Destroy 1 | . 1 . Melee Attacks . | . . . Impact . | . . . Slashing . | . . . Piercing . | . . . Sneak Attacks . | . . . Combat Hostiles . | . . . Follow-up Attacks . | . . . Damage Inflicted 903 | . 604 299 Guns 903 | . 604 299 Cannons . | . . . Explosions . | . . . Melee . | . . . Ramming . | . . . Kinetic 716 | . 527 189 Thermal 187 | . 77 110 Explosive . | . . . Electromagnetic . | . . . Impact . | . . . Slashing . | . . . Piercing . | . . . Highest Corruption . | . . . Average Corruption . | . . . Corruption Purged . | . . . Corruption Blocked . | . . . Overload Shots . | . . . Overflow Damage . | . . . Projectiles . | . . . Explosions . | . . . Melee . | . . . Knockbacks . | . . . Impact . | . . . Kinetic . | . . . Secondary . | . . . Self-Inflicted Damage . | . . . Shots . | . . . Rammed . | . . . Targets Rammed . | . . . Kicked . | . . . Crushed . | . . . Highest Temperature 60 | . 60 40 Average Temperature 17 | . 16 21 Received Heat Transfer 375 | . 231 144 Siege Activations . | . . . Martial Activations . | . . . Shielding Activations . | . . . Robots Disrupted . | . . . Combat Hostiles . | . . . Robots Corrupted . | . . . Combat Hostiles . | . . . Parts Fried . | . . . Impact Corruptions . | . . . Robots Melted . | . . . Combat Hostiles . | . . . Parts Melted 4 | . 1 3 Heat Transferred 425 | . 175 250 Parts Sabotaged . | . . . Parts Stolen . | . . . Parts Stripped . | . . . Power Chain Reactions . | . . . Alert | -11 -10 -10 ------- Run | Yrd Mat Min Maximum Alert Level . | . . . Low Security (%) 100 | 100 100 100 Level 1 . | . . . Level 2 . | . . . Level 3 . | . . . Level 4 . | . . . Level 5 . | . . . High Security . | . . . Max Security . | . . . Peak Influence 148 | . 135 148 Initial 38 | . . 38 Average 58 | . 52 104 Influence Increases 477 | . 307 170 Destroy 0b10 Robot/C 340 | . 200 140 Destroy 0b10 Robot/NC 20 | . 20 . Destroy Leader 72 | . 42 30 Lose Combat Pursuer 45 | . 45 . Influence Decreases 369 | . 208 161 Entered New Map 61 | . . 61 Time Decay 238 | . 178 60 Lost Part 70 | . 30 40 Squads Dispatched 1 | . 1 . Investigation 1 | . 1 . Extermination . | . . . Reinforcement . | . . . Assault . | . . . Garrison . | . . . Intercept . | . . . Searches Triggered . | . . . Construction Impeded . | . . . Haulers Reinforced . | . . . Active Scanning Responses . | . . . Cargo Convoy Interrupts . | . . . Stealth | -11 -10 -10 --------- Run | Yrd Mat Min Distress Signals 2 | . 2 . Communications Jammed . | . . . Distress Signals . | . . . Times Spotted 26 | . 18 8 Peak Tracking Total 6 | . 6 3 Tactical Retreats 1 | . 1 . Traps | -11 -10 -10 ------- Run | Yrd Mat Min Traps Triggered 1 | . 1 . Indirectly . | . . . Trap Hack Attempts . | . . . Triggered . | . . . Disarmed . | . . . Reprogrammed . | . . . Reused . | . . . Traps Extracted . | . . . Installed . | . . . Triggered . | . . . Machines | -11 -10 -10 ---------- Run | Yrd Mat Min Machines Disabled . | . . . Max in Single Turn . | . . . Machines Repaired . | . . . Machines Dismantled . | . . . Machines Sabotaged . | . . . Overloaded Fab Kills . | . . . Hacking | -11 -10 -10 --------- Run | Yrd Mat Min Machines Accessed . | . . . Terminals . | . . . Fabricators . | . . . Repair Stations . | . . . Recycling Units . | . . . Scanalyzers . | . . . Garrison Access . | . . . Total Hacks . | . . . Successful . | . . . Failed . | . . . Catastrophic . | . . . Database Lockouts . | . . . Manual . | . . . Terminals . | . . . Fabricators . | . . . Repair Stations . | . . . Recycling Units . | . . . Scanalyzers . | . . . Garrison Access . | . . . Terminal Hacks . | . . . Fabricator Hacks . | . . . Repair Station Hacks . | . . . Recycling Unit Hacks . | . . . Scanalyzer . | . . . Garrison Access Hacks . | . . . Unauthorized Hacks . | . . . Terminals . | . . . Fabricators . | . . . Repair Stations . | . . . Recycling Units . | . . . Scanalyzers . | . . . Garrison Access . | . . . Data Cores Recovered . | . . . Used . | . . . Hacking Detections . | . . . Full Trace Events . | . . . Feedback Events . | . . . Feedback Blocked . | . . . Robot Schematics Acquired . | . . . Robots Built . | . . . Authchips . | . . . Time . | . . . Total Robot Build Rating . | . . . Part Schematics Acquired . | . . . Parts Built . | . . . Authchips . | . . . Time . | . . . Total Part Build Rating . | . . . Part Studies Acquired . | . . . Parts Repaired . | . . . Time . | . . . Parts Recycled . | . . . Recycled Matter . | . . . Retrieved Matter . | . . . Retrieved Components . | . . . Parts Scanalyzed . | . . . Part Schematics Acquired . | . . . Parts Damaged . | . . . Bothacking | -11 -10 -10 ------------ Run | Yrd Mat Min Used RIF Installer . | . . . Robots Hacked . | . . . Non-combat . | . . . Combat . | . . . Robot Hacks Applied . | . . . Relay Couplers Released . | . . . Fabnet Peak Effective % . | . . . Robots Rewired . | . . . Allies Hacked . | . . . Hacks Repelled . | . . . Allies | -11 -10 -10 -------- Run | Yrd Mat Min Total Allies . | . . . Largest Group . | . . . Highest-Rated Group . | . . . Highest-Rated Ally . | . . . Total Orders . | . . . Ally Attacks . | . . . Total Damage . | . . . Kills . | . . . Allies Corrupted . | . . . Allies Melted . | . . . Intel | -11 -10 -10 ------- Run | Yrd Mat Min Active Infowar (turns) . | . . . Robot Analysis Total . | . . . Derelict Logs Recovered . | . . . Drone Launches . | . . . Drone Recoveries . | . . . Exploration | -11 -10 -10 ------------- Run | Yrd Mat Min Turns Passed 705 | 47 526 132 Spaces Moved 485 | 42 356 87 Core 20 | 15 5 . Treads . | . . . Legs 55 | . 55 . Wheels 349 | 27 296 26 Hover . | . . . Flight 61 | . . 61 Fastest Speed 37 | 50 80 37 Average Speed 86 | 75 96 52 Slowest Speed 150 | 90 150 90 Overloaded Moves . | . . . Propulsion Burnouts . | . . . Robots Hopped 3 | . . 3 Potential Cave-ins . | . . . Cave-ins Triggered . | . . . Exploration Rate (%) 23 | 4 46 20 Regions Visited 2 Branch Regions 1 Pre-discovered Areas . | . . . Known Exits Taken . | . . . Unknown Exits Taken 2 | 1 1 . Scrap Searched . | . . . Spaces Dug . | . . . Terrain Destroyed . | . . . Melee . | . . . Projectile . | . . . AOE . | . . . Terrain Rammed . | . . . Walls Destroyed . | . . . Machines Disabled . | . . . Actions | -11 -10 -10 --------- Run | Yrd Mat Min Total 632 | 56 446 130 Wait 7 | . 4 3 Move 477 | 41 355 81 Hop 3 | . . 3 Pick Up 25 | 8 14 3 Fast Attach 3 | . 3 . Attach 15 | 6 5 4 Detach . | . . . Swap 6 | 1 1 4 Drop 11 | . 6 5 Fire 85 | . 58 27 Melee . | . . . Ram . | . . . Kick . | . . . Crush . | . . . Escape Stasis . | . . . Rewire . | . . . Trap . | . . . Miscellaneous . | . . . Route ------- -11/Scrapyard -10/Materials (discovered 2 exits: [*Mat] / [*Min]) -10/Mines History --------- Turn | Location | Event 8 | -11/Scrapyard | Discovered new exit (range 14) 48 | -11/Scrapyard | Entered Materials 314 | -10/Materials | Discovered new exit (range 10) 316 | -10/Materials | Build established: Mutant 318 | -10/Materials | Discovered new exit (range 16) 430 | -10/Materials | Lost 3 parts (1p2n) 536 | -10/Materials | Core integrity fell below 50% 574 | -10/Materials | Entered Mines 664 | -10/Mines | Assembled infested the area 676 | -10/Mines | Core integrity fell below 20% 706 | -10/Mines | Destroyed by G-34 Mercenary with Small Laser Last Messages --------------- 00641_ Dropped Sml. Storage Unit. 00647_ A derelict emerges from the shadows: "What are you doing alone down here?" 00649_ UV-62E(g): "Well, at least you look like you can take care of yourself!" 00651_ UV-62E(g): "I have the funny feeling that things are about to get a lot worse around here, see you around!" 00651_ UV-62E(g) slips back into the shadows. 00659_ Acquired 13 matter. 00660_ Acquired 20 matter. 00664_ ALERT: Infestation in the mines, dispatching Demolisher response squad. 00665_ K-01 Serf collects debris. 00674_ Flight Unit destroyed. 00680_ T-07 Excavator destroyed. 00687_ Lgt. Ion Engine destroyed. 00689_ Lgt. Assault Rifle destroyed. 00692_ G-47 Trooper destroyed. 00694_ Acquired Wheel. Map ----- +----------------------------------------------------+ | | | | | ?????????????????????????????????????????????????? | | ?????????????????????????????????????????????????? | | ?????????????????????????????????????????????????? | | ???????????????????????#?????????????????????????? | | ??????????????????????? #####????????????????????? | | ??????????????????????? ##???????????????????? | | ####???????????????????? #???????????????????? | | # ##??????????????????? ##??????????????????? | | # #??????????????????? ##?????????????????? | | # #???####???????????? ##????????????????? | | #??## ##???????????# #????????????????? | | #### ##??????????# #????????????????? | | ############* #?????????????????? | | # ##### [*== *! ##?????????????????? | | ####???# ###########[## ###??????????????????? | | ??????# ##?????????# #?##????????????????????? | | ??????# ##??????????# #???????????????????????? | | ??????## ##???######### #???????????????????????? | | ???????######### #??###??????????????????? | | ????????### % ## ####### #?# ##?????????????????? | | ???????##% [ #????## ## #?????????????????? | | ???????# % #####??### = #?????????????????? | | ???????# ##??##### !%! # #??????????????? | | ???????# #??## @%g #??????????????? | | ???????# #??# ## #??????????????? | | ???????## ##?# ##?# #????????????? | | ????????####??# #??? #???????????? | | ?????????????# ???? #??????????? | | ?????????????# ???? ## ??????????? | | ?????????????## #?????##?? ??????????? | | ??????????????## ##?????????? ?????????????? | | ???????????????## #??????????????????????????? | | ????????????????#### ???????????????????????????? | | ???????????????????# ???????????????????????????? | | ???????????????????# ???????????????????????????? | | ???????????????????# ???????????????????????????? | | ???????????????????# ???????????????????????????? | | ???????????????????# ????????????????????????????? | | ???????????????????# ????????????????????????????? | | ?????????????????????????????????????????????????? | | ?????????????????????????????????????????????????? | | ?????????????????????????????????????????????????? | | ?????????????????????????????????????????????????? | | ?????????????????????????????????????????????????? | | ?????????????????????????????????????????????????? | | ?????????????????????????????????????????????????? | | ?????????????????????????????????????????????????? | | ?????????????????????????????????????????????????? | +----------------------------------------------------+ Best States ------------- Heat Dissipation 39 Energy Generation 10 Energy Capacity 250 Matter Stores 293 Matter Capacity 300 Sight Range 16 Terrain Scan Density 10 Evasion (%) 62 Targeting Accuracy 5 Item Schematics ----------------- None Robot Schematics ------------------ None Fabricated ------------ Nothing Repaired ---------- Nothing Studied --------- None Alien Tech Used ----------------- None Achievements -------------- None Challenges ------------ None Game ------ Seed NeutronShockDrillbomb Manual? 0 Play Time 00:07:24 Cumulative 51.0 hours Start 2026.08.22 @ 10:53:39 End 2026.08.22 @ 10:59:35 Sessions 1 Manual Loads 0 Difficulty Rogue Special Mode None Game No. 150 Rogue 150 Adventurer 0 Explorer 0 Win Type - Total 0 Types 0/0/0/0/0/0/0/0/0/0 Lore% 26 Gallery% 36 Achievement% 22 Wizard Run 0 Options --------- Layout 1 ASCII 0 Keyboard 0 Movement Mouse Keybinds 0 Fullscreen 1 Font 24/Smallcaps Map View 50x35 Zoom Use 0% Tactical HUD 1 Map Filters NONE Filters NONE Steam 1 RUN: b9d5cda5-38e6-4d10-ab85-a960f865b32f